bitfinex/quotes_SOLUSD_20250130
["timestamp","ask_amount","ask_price","bid_price","bid_amount"]
[1738200359576,0.03,233.42,233.32,0.25098]
[1738200359887,0.03,233.42,233.41,21.1678176]
[1738200362401,0.03,233.42,233.39,21.1678176]
[1738200362813,0.03,233.42,233.37,21.1678176]
[1738200364415,0.03,233.42,233.35,21.1678176]
[1738200364599,0.03,233.42,233.37,21.1678176]
[1738200366020,0.03,233.42,233.39,21.1678176]
[1738200367502,0.03,233.42,233.37,21.1678176]
[1738200369823,0.03,233.42,233.39,21.1678176]
[1738200370019,0.03,233.42,233.41,21.1678176]
[1738200370618,0.0001,233.42,233.41,21.4187976]
[1738200371034,0.0001,233.42,233.41,25.7030976]
[1738200372113,0.0001,233.42,233.41,26.7030976]
[1738200372318,0.0001,233.42,233.41,25.7030976]
[1738200372556,0.0001,233.42,233.41,4.2843]
[1738200375033,0.0001,233.42,233.41,4.53528]
[1738200375450,0.0001,233.42,233.41,4.2843]
[1738200376461,0.0001,233.42,233.41,4.53528]
[1738200377450,0.0001,233.42,233.41,4.2843]
[1738200379038,0.0001,233.42,233.4,21.1678176]
[1738200379358,0.0001,233.42,233.36,21.1678176]
[1738200380452,0.0001,233.42,233.36,25.4528176]
[1738200381622,0.0001,233.42,233.38,21.1678176]
[1738200381845,0.0001,233.42,233.41,21.1678176]
[1738200382830,0.0001,233.42,233.41,26.09448854]
[1738200384085,0.0001,233.42,233.41,51.12235254]
[1738200384376,0.0001,233.42,233.41,52.12235254]
[1738200385963,0.0001,233.42,233.41,52.15235254]
[1738200386437,0.0001,233.42,233.41,58.71623254]
[1738200386638,0.03,233.51,233.5,21.1678176]
[1738200387039,0.03,233.51,233.5,21.80993329]
[1738200388446,0.03,233.51,233.5,26.09253329]
[1738200388646,0.03,233.51,233.5,50.12039729]
[1738200389043,0.03,233.51,233.5,26.34351329]
[1738200389262,0.03,233.51,233.5,26.09253329]
[1738200389943,0.03,233.51,233.5,51.12039729]
[1738200390149,0.03,233.51,233.5,50.12039729]
[1738200390472,0.03,233.51,233.5,73.28821489]
[1738200390672,0.03,233.51,233.5,72.28821489]
[1738200390882,0.0001,233.51,233.5,72.28821489]
[1738200391057,0.0001,233.51,233.5,51.12039729]
[1738200393056,0.0001,233.51,233.5,26.34351329]
[1738200393251,0.0001,233.51,233.5,21.80993329]
[1738200393480,0.0001,233.51,233.48,21.1678176]
[1738200393754,0.0001,233.51,233.46,21.1678176]
[1738200394378,0.0001,233.51,233.48,21.1678176]
[1738200395779,0.0001,233.51,233.5,21.1678176]
[1738200396170,0.0001,233.51,233.5,21.2933076]
[1738200396661,0.0001,233.51,233.5,45.1956816]
[1738200396863,0.0001,233.51,233.5,42.5866152]
[1738200397071,0.0001,233.51,233.5,21.4187976]
[1738200397889,0.0001,233.51,233.5,25.7013976]
[1738200398886,0.0001,233.51,233.5,49.4782816]
[1738200399771,0.0001,233.51,233.5,50.4782816]
[1738200400081,0.0001,233.51,233.5,50.12026912]
[1738200400782,0.0001,233.51,233.5,51.12026912]
[1738200402871,0.0001,233.52,233.51,0.25098]
[1738200404072,0.0001,233.52,233.51,4.53338]
[1738200406395,0.0001,233.52,233.51,25.7011976]
[1738200406786,0.0001,233.52,233.51,26.34325927]
[1738200407392,0.0001,233.52,233.51,25.4502176]
[1738200407993,0.0001,233.52,233.51,26.09234935]
[1738200409172,0.0001,233.52,233.51,25.4502176]
[1738200409599,0.0001,233.52,233.51,25.5757076]
[1738200409788,0.0001,233.52,233.51,71.28793395]
[1738200409986,0.0001,233.52,233.51,50.12011635]
[1738200410210,0.0001,233.52,233.51,26.34323235]
[1738200413697,0.0001,233.52,233.51,51.12011635]
[1738200413901,0.0001,233.52,233.51,71.28793395]
[1738200414081,0.0001,233.52,233.51,26.34323235]
[1738200414698,0.0001,233.52,233.51,20.84014607]
[1738200415384,0.063,233.56,233.55,0.12549]
[1738200415583,0.0001,233.56,233.55,13.97048067]
[1738200415790,0.0001,233.56,233.51,17.48550572]
[1738200415971,0.0001,233.56,233.51,4.2824]
[1738200416178,0.0001,233.56,233.53,13.20310572]
[1738200416801,0.0001,233.56,233.51,17.48550572]
[1738200418801,0.0001,233.56,233.52,21.13325864]
[1738200419182,0.0001,233.56,233.52,25.41545864]
[1738200420899,0.0001,233.56,233.51,0.03]
[1738200421082,7.7761,233.55,233.51,0.03]
[1738200422179,7.7761,233.55,233.51,25.44555864]
[1738200422381,0.0001,233.56,233.53,21.13325864]
[1738200422998,0.0001,233.56,233.51,21.16325864]
[1738200423314,0.0001,233.56,233.55,21.13325864]
[1738200424790,0.0001,233.56,233.53,21.13325864]
[1738200424994,0.0001,233.56,233.51,25.44555864]
[1738200425182,0.0001,233.56,233.51,21.16325864]
[1738200427990,0.0001,233.56,233.51,0.03]
[1738200429410,0.0001,233.56,233.55,21.13325864]
[1738200430906,0.0001,233.56,233.53,21.13325864]
[1738200433593,0.0001,233.56,233.55,21.13325864]
[1738200434890,0.0001,233.56,233.53,25.41525864]
[1738200436111,0.0001,233.56,233.55,21.13325864]
[1738200437013,0.0001,233.56,233.55,23.60515301]
[1738200437517,0.0001,233.56,233.55,47.38203701]
[1738200437688,13.39810883,233.75,233.57,0.25098]
[1738200437689,6.66755441,233.73,233.57,0.25098]
[1738200437891,6.66755441,233.73,233.65,21.13325864]
[1738200437892,4.2784,233.73,233.65,21.13325864]
[1738200438288,4.2782,233.74,233.65,21.13325864]
[1738200438600,0.128,233.69,233.65,13.19381775]
[1738200438932,0.128,233.69,233.66,13.19381775]
[1738200439107,0.128,233.69,233.67,13.19381775]
[1738200439432,0.128,233.69,233.66,13.19381775]
[1738200440722,0.128,233.69,233.64,13.19381775]
[1738200440927,0.128,233.69,233.63,13.19381775]
[1738200441334,4.4071,233.69,233.63,13.19381775]
[1738200441694,4.4071,233.69,233.62,13.19381775]
[1738200441891,0.12549,233.68,233.59,13.19381775]
[1738200442096,1.583,233.67,233.55,13.19381775]
[1738200442322,1.583,233.67,233.54,13.19381775]
[1738200442323,4.2799,233.65,233.54,13.19381775]
[1738200442826,0.128,233.64,233.54,13.19381775]
[1738200443035,0.128,233.64,233.53,13.19381775]
[1738200443228,0.12549,233.63,233.51,13.22381775]
[1738200443428,0.12549,233.63,233.51,0.03]
[1738200443734,0.128,233.62,233.6,13.19381775]
[1738200443896,0.128,233.62,233.52,13.19381775]
[1738200443897,0.128,233.62,233.59,13.19381775]
[1738200444106,0.128,233.62,233.58,13.19381775]
[1738200444730,0.128,233.62,233.58,21.12331135]
[1738200445109,0.191,233.62,233.58,21.12331135]
[1738200445632,0.191,233.62,233.59,21.12331135]
[1738200446217,4.4714,233.62,233.55,21.15331135]
[1738200447408,0.191,233.62,233.57,21.12331135]
[1738200447631,4.4716,233.62,233.55,0.03]
[1738200448305,0.191,233.62,233.59,21.12331135]
[1738200448531,0.191,233.62,233.6,21.12331135]
[1738200448832,0.191,233.62,233.59,21.12331135]
[1738200449747,0.191,233.62,233.55,0.67214862]
[1738200449748,0.191,233.62,233.61,21.12331135]
[1738200451208,0.191,233.62,233.61,45.15117535]
[1738200451409,0.0001,233.62,233.61,45.15117535]
[1738200451625,0.0001,233.62,233.61,21.12331135]
[1738200451932,0.0001,233.62,233.61,45.15117535]
[1738200452307,0.063,233.75,233.65,20.12549]
[1738200452507,0.063,233.75,233.69,21.12331135]
[1738200452907,0.063,233.75,233.61,23.59043764]
[1738200453107,5.279,233.7,233.61,27.87103764]
[1738200453302,5.279,233.7,233.63,21.12331135]
[1738200453715,1.0,233.7,233.63,21.12331135]
[1738200453911,5.279,233.7,233.61,23.59043764]
[1738200454125,5.279,233.7,233.61,2.46712629]
[1738200454430,5.279,233.7,233.63,21.12331135]
[1738200454632,5.279,233.7,233.62,21.12331135]
[1738200455433,5.279,233.7,233.6,21.12331135]
[1738200455807,5.279,233.7,233.65,21.12331135]
[1738200455808,1.0,233.7,233.65,21.12331135]
[1738200456022,1.0,233.7,233.67,21.12331135]
[1738200456219,1.0,233.7,233.69,21.12331135]
[1738200457213,1.0,233.7,233.69,25.40241135]
[1738200458734,1.063,233.7,233.69,25.40241135]
[1738200459425,1.063,233.7,233.69,21.12331135]
[1738200461333,1.063,233.7,233.67,21.12331135]
[1738200463124,1.063,233.7,233.67,25.40281135]
[1738200464825,1.063,233.7,233.69,21.12331135]
[1738200466426,1.063,233.7,233.69,25.40241135]
[1738200466628,1.063,233.7,233.69,13.18509924]
[1738200468844,1.063,233.7,233.69,17.46419924]
[1738200469151,1.063,233.7,233.67,13.18509924]
[1738200470337,1.063,233.7,233.69,13.18509924]
[1738200473052,1.063,233.7,233.69,17.46419924]
[1738200474560,1.063,233.7,233.69,23.71658924]
[1738200474740,1.063,233.7,233.69,23.84207924]
[1738200475660,1.063,233.7,233.69,23.71658924]
[1738200477056,1.6024,233.86,233.72,20.0]
[1738200477248,4.2762,233.85,233.77,13.18509924]
[1738200478272,1.6024,233.86,233.77,13.18509924]
[1738200479061,1.6024,233.86,233.79,17.46239924]
[1738200479449,1.6024,233.86,233.79,13.18509924]
[1738200479654,1.6024,233.86,233.77,17.46259924]
[1738200482463,4.2751,233.92,233.81,13.18509924]
[1738200482671,5.8287,233.94,233.81,13.18509924]
[1738200483050,5.8287,233.94,233.83,13.18509924]
[1738200483769,0.12549,233.93,233.84,4.2764]
[1738200483972,1.554,233.94,233.84,4.2764]
[1738200484354,0.063,233.86,233.77,13.18509924]
[1738200484557,0.063,233.86,233.75,17.46309924]
[1738200484759,0.063,233.86,233.79,13.18509924]
[1738200485171,0.063,233.86,233.83,13.18509924]
[1738200485371,0.063,233.86,233.85,13.18509924]
[1738200485579,4.04,234.0,233.85,13.18509924]
[1738200485580,1.5582,234.0,233.86,15.09159]
[1738200485749,1.5582,234.0,233.91,13.18509924]
[1738200486458,14.9537,234.06,233.93,13.18509924]
[1738200486775,20.0,234.03,233.91,13.18509924]
[1738200486950,4.2724,234.06,233.95,13.18509924]
[1738200487148,6.8304,234.08,233.99,13.18509924]
[1738200487347,6.8304,234.08,234.01,13.18509924]
[1738200487348,1.5582,234.08,234.01,13.18509924]
[1738200487759,6.73055441,234.1,234.01,17.45829924]
[1738200487760,0.063,234.1,234.01,17.45829924]
[1738200488161,0.063,234.1,234.03,13.18509924]
[1738200488870,0.063,234.1,234.05,13.18509924]
[1738200489375,0.063,234.1,234.09,13.18509924]
[1738200491565,0.063,234.1,234.09,13.31058924]
[1738200491777,0.063,234.1,234.09,13.95115856]
[1738200492362,0.063,234.1,234.09,13.18509924]
[1738200498185,0.063,234.1,234.08,13.18509924]
[1738200498881,0.063,234.1,234.06,13.18509924]
[1738200499205,0.063,234.1,234.05,17.45749924]
[1738200499367,0.063,234.1,234.03,4.2727]
[1738200500301,0.063,234.1,234.02,13.18509924]
[1738200500476,4.3348,234.1,234.01,13.18509924]
[1738200500986,4.3348,234.1,234.0,4.2734]
[1738200500987,4.3348,234.1,234.02,13.18509924]
[1738200501679,4.3348,234.1,234.01,4.2732]
[1738200501680,4.3348,234.1,234.01,17.45829924]
[1738200501881,4.3348,234.1,234.0,13.18509924]
[1738200502266,4.3348,234.1,233.98,13.18509924]
[1738200502491,1.12549,234.09,233.96,1.22570024]
[1738200502672,0.12549,234.07,233.96,1.22570024]
[1738200502862,6.3651,234.08,233.97,13.18509924]
[1738200503066,6.3651,234.08,234.0,13.18509924]
[1738200503262,1.519,234.06,233.96,1.22570024]
[1738200503576,0.12549,234.04,233.96,1.22570024]
[1738200504090,2.12549,234.04,233.96,1.22570024]
[1738200504688,0.12549,234.04,233.96,1.22570024]
[1738200504877,6.3651,234.08,234.0,13.18509924]
[1738200505064,4.2714,234.12,234.03,13.18509924]
[1738200505267,4.2715,234.11,234.04,13.18509924]
[1738200505471,4.2715,234.11,233.96,5.49980024]
[1738200505472,4.3348,234.1,233.96,5.49980024]
[1738200505874,4.3348,234.1,233.97,13.18509924]
[1738200507180,4.3348,234.1,233.97,17.45909924]
[1738200507679,4.3348,234.1,233.99,13.18509924]
[1738200507985,0.063,234.1,234.02,13.18509924]
[1738200508290,0.12549,234.09,233.97,13.18509924]
[1738200508689,4.3347,234.1,233.99,13.18509924]
[1738200508891,0.063,234.1,234.03,13.18509924]
[1738200509492,4.3347,234.1,234.02,13.18509924]
[1738200509877,0.063,234.1,234.02,13.18509924]
[1738200510298,4.3347,234.1,234.02,13.18509924]
[1738200510691,0.063,234.1,234.04,13.18509924]
[1738200511992,0.063,234.1,234.06,13.18509924]
[1738200512193,0.063,234.1,234.04,4.2727]
[1738200512194,0.063,234.1,234.04,13.18509924]
[1738200513698,0.063,234.1,234.06,13.18509924]
[1738200515689,0.063,234.1,234.07,4.2722]
[1738200516000,0.063,234.1,234.06,13.18509924]
[1738200516198,0.063,234.1,234.04,13.18509924]
[1738200516399,4.3346,234.1,234.02,17.45799924]
[1738200517486,4.3346,234.1,234.02,13.18509924]
[1738200518205,4.3346,234.1,234.02,17.45819924]
[1738200518588,0.063,234.1,234.06,13.18509924]
[1738200519905,0.063,234.1,234.08,13.18509924]
[1738200521908,0.063,234.1,234.09,4.2718]
[1738200522999,0.063,234.1,234.08,13.18509924]
[1738200523190,0.063,234.1,234.06,13.18509924]
[1738200523391,0.063,234.1,234.03,4.2729]
[1738200523392,0.063,234.1,234.04,13.18509924]
[1738200523985,0.063,234.1,233.99,13.18509924]
[1738200524186,4.3347,234.1,233.98,17.45889924]
[1738200524489,0.063,234.1,234.05,13.18509924]
[1738200526810,0.063,234.1,233.96,7.78899024]
[1738200526811,1.6303,234.09,233.97,17.45909924]
[1738200527014,1.6303,234.09,233.96,1.22570024]
[1738200527015,2.0,234.08,233.96,1.22570024]
[1738200527211,1.0,234.06,233.96,1.22570024]
[1738200527787,1.6303,234.09,233.96,1.22570024]
[1738200528008,4.272,234.08,233.99,13.18509924]
[1738200528209,4.272,234.08,233.98,17.45889924]
[1738200529216,4.272,234.08,233.98,13.18509924]
[1738200530110,5.272,234.08,233.96,18.68479948]
[1738200530339,1.0,234.05,233.96,1.22570024]
[1738200530895,1.0,234.05,233.92,13.18509924]
[1738200531096,14.9534,234.06,233.94,13.18509924]
[1738200531800,14.9534,234.06,233.92,13.18509924]
[1738200532001,1.0,234.05,233.92,13.18509924]
[1738200532198,4.2727,234.04,233.92,13.18509924]
[1738200532401,1.5753,234.03,233.89,4.2753]
[1738200532602,2.5753,234.03,233.89,4.2753]
[1738200532899,2.5753,234.03,233.98,13.18509924]
[1738200532900,1.5753,234.03,233.98,13.18509924]
[1738200534400,6.3931,234.05,234.0,13.18509924]
[1738200534601,6.3931,234.05,233.98,17.45889924]
[1738200536530,6.3931,234.05,233.98,4.2738]
[1738200536821,4.272,234.08,233.99,21.05239932]
[1738200539126,4.272,234.08,233.99,25.32589932]
[1738200539417,0.12549,234.07,233.97,21.05239932]
[1738200539615,2.12549,234.07,233.93,4.2746]
[1738200540704,0.12549,234.05,233.93,4.2746]
[1738200541028,0.12549,234.05,233.94,21.05239932]
[1738200541519,4.2722,234.08,234.0,21.05239932]
[1738200542124,4.2722,234.08,233.98,21.05239932]
[1738200542617,4.2722,234.08,233.99,4.2736]
[1738200544021,1.5089,234.09,234.0,21.05239932]
[1738200544204,1.5089,234.09,233.99,4.2736]
[1738200544205,1.5089,234.09,234.04,21.05239932]
[1738200544405,0.063,234.1,234.06,21.05239932]
[1738200545808,0.063,234.1,234.08,21.05239932]
[1738200546207,0.063,234.1,234.02,25.32549932]
[1738200547216,0.063,234.1,234.06,21.05239932]
[1738200548622,0.063,234.1,234.06,25.32459932]
[1738200549931,0.063,234.1,234.08,21.05239932]
[1738200551730,4.3347,234.1,234.01,25.32549932]
[1738200553129,4.3347,234.1,233.97,21.05239932]
[1738200553429,4.3347,234.1,233.97,4.2739]
[1738200555230,0.12549,234.07,233.89,0.6408457]
[1738200555432,1.6432,234.06,233.93,21.05239932]
[1738200555731,24.49277338,234.22,234.08,20.0]
[1738200556028,22.84957338,234.22,234.2,21.05239932]
[1738200556421,22.84957338,234.22,234.18,21.05239932]
[1738200556618,22.84957338,234.22,234.17,13.13447783]
[1738200556817,22.84957338,234.22,234.19,13.13447783]
[1738200557025,13.33510883,234.22,234.19,13.13447783]
[1738200557625,6.5904,234.28,234.19,13.13447783]
[1738200558535,6.5904,234.28,234.18,21.01444251]
[1738200559236,10.8588,234.28,234.18,21.01444251]
[1738200559409,0.12549,234.27,234.18,21.01444251]
[1738200559615,0.12549,234.27,234.16,21.01444251]
[1738200560823,4.2687,234.26,234.16,21.01444251]
[1738200561225,4.2687,234.26,234.11,4.2714]
[1738200561226,4.2687,234.26,234.18,21.01444251]
[1738200562132,4.2691,234.24,234.18,21.01444251]
[1738200562339,4.2691,234.24,234.16,21.01444251]
[1738200563132,0.12549,234.23,234.11,21.01444251]
[1738200563332,5.2691,234.24,234.07,21.01444251]
[1738200563333,0.12549,234.19,234.07,21.01444251]
[1738200563634,0.12549,234.19,234.06,21.01444251]
[1738200563933,0.12549,234.19,234.07,21.01444251]
[1738200564136,1.0,234.2,234.05,21.01444251]
[1738200564137,6.31479,234.17,234.05,21.01444251]
[1738200564316,0.12549,234.15,234.04,21.01444251]
[1738200564524,0.12549,234.15,234.03,21.01444251]
[1738200564835,0.12549,234.15,234.04,21.01444251]
[1738200565639,0.12549,234.13,234.04,21.01444251]
[1738200566415,0.12549,234.13,234.01,21.01444251]
[1738200566416,1.12549,234.13,234.01,21.01444251]
[1738200566837,0.12549,234.11,234.0,21.01444251]
[1738200567139,1.5073,234.12,234.01,21.01444251]
[1738200567637,4.2714,234.11,234.05,21.01444251]
[1738200567943,1.5073,234.12,234.06,21.01444251]
[1738200568239,5.7786,234.12,234.06,21.01444251]
[1738200568625,4.2708,234.15,234.1,21.01444251]
[1738200568944,4.2708,234.15,234.07,21.01444251]
[1738200569538,4.2708,234.15,234.06,21.01444251]
[1738200569839,4.2708,234.15,234.08,21.01444251]
[1738200570049,4.2708,234.15,234.1,21.01444251]
[1738200570759,4.2708,234.15,234.08,21.01444251]
[1738200571237,4.2708,234.15,234.02,4.273]
[1738200571238,4.2708,234.15,234.06,21.01444251]
[1738200571742,4.2711,234.13,234.06,21.01444251]
[1738200572041,4.2711,234.13,234.0,4.2733]
[1738200572042,14.9489,234.13,234.0,21.01444251]
[1738200572420,15.9489,234.13,234.0,21.01444251]
[1738200573439,0.12549,234.1,234.0,21.01444251]
[1738200573938,23.902374,234.12,233.96,21.71521566]
[1738200573939,31.427264,234.08,233.96,21.71521566]
[1738200574241,6.52489,234.08,233.96,21.71521566]
[1738200574537,7.52489,234.08,233.96,21.71521566]
[1738200574741,1.12549,234.06,233.96,0.70077315]
[1738200575245,1.12549,234.04,233.96,0.70077315]
[1738200575816,1.0,234.02,233.96,0.70077315]
[1738200576023,1.5049,233.97,233.84,21.01444251]
[1738200576219,6.3994,233.96,233.84,21.01444251]
[1738200576423,0.12549,233.95,233.82,21.01444251]
[1738200576825,1.12549,233.95,233.82,21.01444251]
[1738200577329,5.2746,233.94,233.82,21.01444251]
[1738200577957,0.12549,233.92,233.82,21.01444251]
[1738200579633,24.153354,233.93,233.81,0.03]
[1738200579951,28.428054,233.93,233.81,0.03]
[1738200580121,39.114954,233.93,233.81,0.03]
[1738200581025,28.302564,233.93,233.82,25.29114251]
[1738200581441,28.302564,233.93,233.82,21.01444251]
[1738200583150,28.302564,233.93,233.86,0.03]
[1738200583332,6.3994,233.96,233.89,21.01444251]
[1738200583535,1.5049,233.97,233.91,21.01444251]
[1738200583745,5.779,233.97,233.89,21.01444251]
[1738200583952,5.779,233.97,233.86,21.04444251]
[1738200584251,26.027864,233.96,233.86,0.03]
[1738200584554,0.12549,233.94,233.89,21.01444251]
[1738200584849,0.12549,233.94,233.86,0.03]
[1738200584850,10.6447,234.01,233.93,21.01444251]
[1738200585466,24.027864,234.0,233.89,21.01444251]
[1738200585766,24.027864,234.0,233.86,0.03]
[1738200586570,0.12549,233.96,233.86,0.03]
[1738200587945,0.25098,233.91,233.86,0.03]
[1738200588142,24.027864,233.91,233.86,0.03]
[1738200588976,0.25098,233.87,233.86,0.03]
[1738200590391,4.52678,233.87,233.86,0.03]
[1738200590948,0.12549,233.87,233.86,0.03]
[1738200592464,3.20549,233.93,233.86,0.03]
[1738200592465,6.3714,233.95,233.86,21.04444251]
[1738200593158,0.12549,233.94,233.86,21.04444251]
[1738200593339,0.12549,233.94,233.88,21.01444251]
[1738200593955,4.6712,233.98,233.86,21.04444251]
[1738200594158,4.274,233.97,233.86,21.04444251]
[1738200594347,4.274,233.97,233.86,25.32034251]
[1738200595263,24.027864,233.96,233.86,21.04444251]
[1738200595474,24.027864,233.96,233.86,0.03]
[1738200595755,24.027864,233.88,233.86,0.03]
[1738200595958,4.40129,233.87,233.81,0.03]
[1738200596147,23.902374,233.85,233.81,0.03]
[1738200596348,0.12549,233.84,233.81,0.03]
[1738200596550,0.12549,233.83,233.81,0.03]
[1738200596743,25.153354,233.82,233.81,0.03]
[1738200597551,26.153354,233.82,233.81,0.0001]
[1738200597771,0.12549,233.77,233.72,0.03]
[1738200598067,4.278,233.75,233.72,0.03]
[1738200598672,28.305564,233.77,233.72,0.03]
[1738200599047,46.602264,233.73,233.72,0.03]
[1738200599744,45.602264,233.73,233.72,0.03]
[1738200600157,51.006154,233.73,233.72,0.03]
[1738200600574,51.006154,233.73,233.72,0.0001]
[1738200600870,1.69989,233.73,233.72,0.0001]
[1738200601074,1.5744,233.79,233.72,0.0001]
[1738200601454,0.25098,233.78,233.72,0.0001]
[1738200602051,6.3239,233.81,233.72,0.0001]
[1738200602272,6.3239,233.81,233.73,21.01444251]
[1738200602571,0.25098,233.8,233.72,0.0001]
[1738200602768,0.12549,233.8,233.73,21.01444251]
[1738200602971,1.5744,233.85,233.75,21.01444251]
[1738200603172,4.2761,233.86,233.75,21.01444251]
[1738200603477,0.12549,233.85,233.77,21.01444251]
[1738200603661,0.12549,233.85,233.79,21.01444251]
[1738200604050,3.12,233.87,233.79,21.01444251]
[1738200604459,0.25098,233.86,233.75,21.01444251]
[1738200604667,0.12549,233.86,233.77,21.01444251]
[1738200605674,4.40099,233.89,233.79,21.01444251]
[1738200605972,0.12549,233.88,233.79,21.01444251]
[1738200606274,23.902374,233.88,233.77,21.01444251]
[1738200606783,4.276,233.86,233.77,21.01444251]
[1738200606959,4.276,233.86,233.75,21.01444251]
[1738200607272,5.8497,233.9,233.79,21.01444251]
[1738200607467,4.2753,233.9,233.83,21.01444251]
[1738200607660,4.275,233.92,233.85,21.01444251]
[1738200608261,0.12549,233.91,233.85,21.01444251]
[1738200608766,6.3239,233.93,233.85,21.01444251]
[1738200608968,0.12549,233.92,233.85,21.01444251]
[1738200609776,0.12549,233.93,233.85,21.01444251]
[1738200609963,0.12549,233.93,233.83,21.01444251]
[1738200610276,4.2739,233.98,233.87,21.01444251]
[1738200610460,4.2739,233.98,233.89,21.01444251]
[1738200610656,0.12549,233.97,233.89,21.01444251]
[1738200611063,0.12549,233.98,233.89,21.01444251]
[1738200611277,0.12549,233.96,233.89,21.01444251]
[1738200611675,24.027864,233.96,233.85,21.01444251]
[1738200612257,0.12549,233.96,233.89,21.01444251]
[1738200613059,4.2729,234.03,233.93,25.28904251]
[1738200613268,4.2729,234.03,233.95,21.01444251]
[1738200613492,0.12549,234.02,233.95,21.01444251]
[1738200614090,4.39819,234.04,233.95,21.01444251]
[1738200614582,0.12549,234.03,233.91,21.01444251]
[1738200614756,0.12549,234.02,233.89,21.01444251]
[1738200614957,0.12549,234.01,233.87,21.01444251]
[1738200615163,0.12549,234.0,233.87,21.01444251]
[1738200615387,0.12549,233.97,233.83,21.01444251]
[1738200615959,0.12549,233.94,233.83,21.01444251]
[1738200616279,0.12549,233.92,233.81,21.01444251]
[1738200616575,24.027864,233.92,233.81,21.01444251]
[1738200617566,24.027864,233.9,233.79,21.01444251]
[1738200618268,0.12549,233.87,233.75,21.01444251]
[1738200618779,0.12549,233.82,233.72,0.0001]
[1738200619769,0.12549,233.8,233.72,0.0001]
[1738200620361,24.027864,233.8,233.72,0.0001]
[1738200620955,0.12549,233.8,233.72,0.0001]
[1738200621157,4.2766,233.83,233.75,21.01444251]
[1738200621584,0.12549,233.82,233.75,21.01444251]
[1738200621785,1.6055,233.84,233.77,21.01444251]
[1738200621979,3.12,233.87,233.81,21.01444251]
[1738200622161,4.2754,233.9,233.81,21.01444251]
[1738200622567,0.12549,233.89,233.81,21.01444251]
[1738200623168,28.302964,233.91,233.81,21.01444251]
[1738200625765,28.177474,233.91,233.81,21.01444251]
[1738200625971,0.12549,233.91,233.85,21.01444251]
[1738200626380,10.525,233.93,233.85,21.01444251]
[1738200626682,4.2745,233.95,233.87,21.01444251]
[1738200626989,0.12549,233.94,233.87,21.01444251]
[1738200628288,0.12549,233.93,233.87,21.01444251]
[1738200628470,0.12549,233.93,233.85,21.01444251]
[1738200629965,0.063,233.96,233.9,21.01444251]
[1738200630284,0.063,233.96,233.92,21.01444251]
[1738200630471,0.063,233.96,233.9,21.01444251]
[1738200630664,0.18849,233.96,233.88,21.01444251]
[1738200631284,0.063,233.96,233.92,21.01444251]
[1738200631671,0.063,233.96,233.94,21.01444251]
[1738200631896,0.063,233.96,233.95,4.2744]
[1738200633372,0.063,233.96,233.94,21.01444251]
[1738200633574,0.063,233.96,233.94,25.28894251]
[1738200634000,0.063,233.96,233.92,21.01444251]
[1738200634293,0.12549,233.95,233.83,4.2764]
[1738200634499,0.12549,233.95,233.82,21.01444251]
[1738200634906,0.063,233.96,233.86,21.01444251]
[1738200635066,0.063,233.96,233.91,21.01444251]
[1738200635271,0.063,233.96,233.93,21.01444251]
[1738200635511,0.063,233.96,233.91,21.01444251]
[1738200636593,0.063,233.96,233.95,21.01444251]
[1738200638591,0.063,233.96,233.95,34.21269917]
[1738200638992,0.0001,233.96,233.95,58.88143457]
[1738200639293,0.0001,233.96,233.95,59.88143457]
[1738200639497,0.0001,233.96,233.95,58.88143457]
[1738200641097,0.0001,233.96,233.95,63.15583457]
[1738200642071,0.0001,233.96,233.95,39.12797057]
[1738200642272,0.0001,233.96,233.95,38.48709917]
[1738200643279,0.0001,233.96,233.95,38.61258917]
[1738200644405,0.0001,233.96,233.95,38.73807917]
[1738200644785,0.0001,233.96,233.95,62.51496317]
[1738200645597,0.063,234.1,234.0,0.12549]